[Event "Titled Tuesday Blitz May 23 Early 2023"]
[White "Andreev, Konstantin"]
[Black "Ambartsumova, Karina"]
[WhiteFideId "24239305"]
[BlackFideId "4166299"]
[WhiteElo "2106"]
[BlackElo "2240"]
[Result "1-0"]
[Round "07"]
[TimeControl "180+2"]
[Date "2023.05.23"]
[WhiteClock "0:00:41"]
[BlackClock "0:00:01"]

1. e4 {[%clk 0:02:57]}  c5 {[%clk 0:03:00]} 2. Nf3 {[%clk 0:02:58]}  e6 {[%clk 0:02:59]} 3. d4 {[%clk 0:02:58]}  cxd4 {[%clk 0:03:00]} 4. Nxd4 {[%clk 0:02:58]}  a6 {[%clk 0:03:00]} 5. Bd3 {[%clk 0:02:57]}  Bc5 {[%clk 0:03:00]} 6. Nb3 {[%clk 0:02:58]}  Ba7 {[%clk 0:03:00]} 7. Nc3 {[%clk 0:02:46]}  Nc6 {[%clk 0:02:59]} 8. O-O {[%clk 0:02:41]}  Nf6 {[%clk 0:02:59]} 9. Kh1 {[%clk 0:02:39]}  d6 {[%clk 0:02:50]} 10. f4 {[%clk 0:02:39]}  O-O {[%clk 0:02:44]} 11. Qf3 {[%clk 0:02:37]}  e5 {[%clk 0:02:38]} 12. f5 {[%clk 0:02:36]}  h6 {[%clk 0:02:39]} 13. Bd2 {[%clk 0:02:31]}  b5 {[%clk 0:02:37]} 14. Nd5 {[%clk 0:02:28]}  Nd4 {[%clk 0:02:15]} 15. Nxd4 {[%clk 0:02:24]}  Bxd4 {[%clk 0:02:16]} 16. c3 {[%clk 0:02:25]}  Ba7 {[%clk 0:02:12]} 17. Qg3 {[%clk 0:02:24]}  Kh8 {[%clk 0:02:03]} 18. Rae1 {[%clk 0:02:10]}  Bb7 {[%clk 0:01:43]} 19. Nxf6 {[%clk 0:02:08]}  Qxf6 {[%clk 0:01:44]} 20. h4 {[%clk 0:02:08]}  d5 {[%clk 0:01:23]} 21. exd5 {[%clk 0:01:14]}  Bxd5 {[%clk 0:01:21]} 22. Bg5 {[%clk 0:01:14]}  hxg5 {[%clk 0:00:34]} 23. hxg5 {[%clk 0:01:12]}  Qc6 {[%clk 0:00:34]} 24. g6 {[%clk 0:01:07]}  fxg6 {[%clk 0:00:18]} 25. fxg6 {[%clk 0:01:06]}  Bxg2+ {[%clk 0:00:05]} 26. Qxg2 {[%clk 0:00:50]}  Qxg2+ {[%clk 0:00:04]} 27. Kxg2 {[%clk 0:00:51]}  Rxf1 {[%clk 0:00:02]} 28. Rxf1 {[%clk 0:00:51]}  Kg8 {[%clk 0:00:01]} 29. Bf5 {[%clk 0:00:42]}  Rd8 {[%clk 0:00:01]} 30. Be6+ {[%clk 0:00:42]}  Kh8 {[%clk 0:00:01]} 31. Rh1# {[%clk 0:00:41]} 1-0


[Site "https://www.chess.com"]

[Event "Titled Tuesday Blitz May 23 Early 2023"]
[White "Pham, Le Thao Nguyen"]
[Black "Lopez Mulet, Inigo"]
[WhiteFideId "12401226"]
[BlackFideId "22235620"]
[WhiteElo "2286"]
[BlackElo "2289"]
[Result "1-0"]
[Round "07"]
[TimeControl "180+2"]
[Date "2023.05.23"]
[WhiteClock "0:00:16"]
[BlackClock "0:00:18"]

1. d4 {[%clk 0:02:59]}  d6 {[%clk 0:02:58]} 2. Nf3 {[%clk 0:02:49]}  Nf6 {[%clk 0:02:59]} 3. g3 {[%clk 0:02:44]}  h5 {[%clk 0:02:58]} 4. h4 {[%clk 0:02:41]}  Bg4 {[%clk 0:02:57]} 5. Bg2 {[%clk 0:02:42]}  c6 {[%clk 0:02:57]} 6. c3 {[%clk 0:02:42]}  Nbd7 {[%clk 0:02:57]} 7. O-O {[%clk 0:02:40]}  e5 {[%clk 0:02:58]} 8. Bg5 {[%clk 0:02:35]}  Be7 {[%clk 0:02:54]} 9. Nbd2 {[%clk 0:02:34]}  e4 {[%clk 0:02:52]} 10. Nh2 {[%clk 0:02:33]}  d5 {[%clk 0:02:52]} 11. Re1 {[%clk 0:02:19]}  Nh7 {[%clk 0:02:46]} 12. Bxe7 {[%clk 0:02:13]}  Qxe7 {[%clk 0:02:47]} 13. f3 {[%clk 0:02:11]}  Bf5 {[%clk 0:02:42]} 14. fxe4 {[%clk 0:02:02]}  Bxe4 {[%clk 0:02:42]} 15. Nxe4 {[%clk 0:01:58]}  dxe4 {[%clk 0:02:43]} 16. Qd2 {[%clk 0:01:46]}  f5 {[%clk 0:02:41]} 17. Qf4 {[%clk 0:01:43]}  O-O {[%clk 0:02:35]} 18. e3 {[%clk 0:01:35]}  Nb6 {[%clk 0:02:13]} 19. Bf1 {[%clk 0:01:33]}  a5 {[%clk 0:02:13]} 20. c4 {[%clk 0:01:32]}  a4 {[%clk 0:02:13]} 21. Be2 {[%clk 0:01:31]}  g6 {[%clk 0:02:13]} 22. Rad1 {[%clk 0:01:25]}  Kg7 {[%clk 0:02:13]} 23. d5 {[%clk 0:01:20]}  cxd5 {[%clk 0:02:13]} 24. cxd5 {[%clk 0:01:21]}  Rfd8 {[%clk 0:02:14]} 25. d6 {[%clk 0:01:19]}  Qe6 {[%clk 0:02:14]} 26. Rd4 {[%clk 0:01:18]}  Ra5 {[%clk 0:02:12]} 27. Red1 {[%clk 0:01:14]}  Rd7 {[%clk 0:02:04]} 28. Qf2 {[%clk 0:00:53]}  Qxa2 {[%clk 0:02:03]} 29. Rb4 {[%clk 0:00:46]}  Nd5 {[%clk 0:01:45]} 30. Bc4 {[%clk 0:00:42]}  Nxb4 {[%clk 0:01:45]} 31. Bxa2 {[%clk 0:00:40]}  Nxa2 {[%clk 0:01:46]} 32. Qc2 {[%clk 0:00:35]}  Nf6 {[%clk 0:00:44]} 33. Qc4 {[%clk 0:00:30]}  b5 {[%clk 0:00:37]} 34. Qxa2 {[%clk 0:00:24]}  b4 {[%clk 0:00:36]} 35. Nf1 {[%clk 0:00:20]}  Ra6 {[%clk 0:00:32]} 36. Rd4 {[%clk 0:00:18]}  b3 {[%clk 0:00:25]} 37. Qa3 {[%clk 0:00:17]}  Kf7 {[%clk 0:00:22]} 38. Nd2 {[%clk 0:00:16]}  Ke6 {[%clk 0:00:20]} 39. Nxb3 {[%clk 0:00:16]}  Raxd6 {[%clk 0:00:20]} 40. Nc5+ {[%clk 0:00:16]}  Ke5 {[%clk 0:00:18]} 41. Nxd7+ {[%clk 0:00:16]}  Rxd7 {[%clk 0:00:18]} 42. Rxd7 {[%clk 0:00:15]}  Nxd7 {[%clk 0:00:18]} 43. Qe7+ {[%clk 0:00:16]} 1-0


[Site "https://www.chess.com"]

[Event "Titled Tuesday Blitz May 23 Early 2023"]
[White "merinasian"]
[Black "Bodnaruk, Anastasia"]
[BlackFideId "4181751"]
[WhiteElo "2470"]
[BlackElo "2304"]
[Result "1-0"]
[Round "07"]
[TimeControl "180+2"]
[Date "2023.05.23"]
[WhiteClock "0:00:39"]
[BlackClock "0:00:00"]

1. d4 {[%clk 0:03:00]}  Nf6 {[%clk 0:02:59]} 2. Nf3 {[%clk 0:03:01]}  g6 {[%clk 0:02:59]} 3. g3 {[%clk 0:03:01]}  Bg7 {[%clk 0:03:00]} 4. Bg2 {[%clk 0:03:01]}  O-O {[%clk 0:03:00]} 5. O-O {[%clk 0:02:58]}  d5 {[%clk 0:02:59]} 6. c4 {[%clk 0:02:45]}  c6 {[%clk 0:02:57]} 7. Nbd2 {[%clk 0:02:30]}  a5 {[%clk 0:02:51]} 8. b3 {[%clk 0:02:18]}  a4 {[%clk 0:02:50]} 9. Bb2 {[%clk 0:02:18]}  b5 {[%clk 0:02:35]} 10. Ne5 {[%clk 0:02:07]}  dxc4 {[%clk 0:01:34]} 11. bxc4 {[%clk 0:01:57]}  Ra6 {[%clk 0:01:31]} 12. Rc1 {[%clk 0:01:42]}  b4 {[%clk 0:01:26]} 13. e3 {[%clk 0:01:33]}  Nfd7 {[%clk 0:01:19]} 14. Nd3 {[%clk 0:01:31]}  c5 {[%clk 0:01:11]} 15. Ne4 {[%clk 0:01:18]}  Ra7 {[%clk 0:00:38]} 16. Nexc5 {[%clk 0:01:15]}  Nxc5 {[%clk 0:00:33]} 17. Nxc5 {[%clk 0:01:15]}  a3 {[%clk 0:00:24]} 18. Ba1 {[%clk 0:01:15]}  Nd7 {[%clk 0:00:23]} 19. Nd3 {[%clk 0:01:15]}  Qa5 {[%clk 0:00:11]} 20. Qb3 {[%clk 0:01:14]}  Ba6 {[%clk 0:00:09]} 21. Qxb4 {[%clk 0:01:14]}  Qc7 {[%clk 0:00:06]} 22. Qxe7 {[%clk 0:01:11]}  Rb8 {[%clk 0:00:03]} 23. Bd5 {[%clk 0:00:51]}  Nf6 {[%clk 0:00:02]} 24. Bxf7+ {[%clk 0:00:50]}  Kh8 {[%clk 0:00:01]} 25. Qxc7 {[%clk 0:00:50]}  Rxc7 {[%clk 0:00:01]} 26. Be6 {[%clk 0:00:50]}  Ne4 {[%clk 0:00:02]} 27. Ne5 {[%clk 0:00:42]}  Nd2 {[%clk 0:00:00]} 28. Nf7+ {[%clk 0:00:39]} 1-0


[Site "https://www.chess.com"]

[Event "Titled Tuesday Blitz May 23 Early 2023"]
[White "Shubenkova, Veronika"]
[Black "Kim, Sergey"]
[WhiteFideId "44124040"]
[BlackFideId "13700570"]
[WhiteElo "2060"]
[BlackElo "2570"]
[Result "1-0"]
[Round "07"]
[TimeControl "180+2"]
[Date "2023.05.23"]
[WhiteClock "0:01:25"]
[BlackClock "0:00:42"]

1. e4 {[%clk 0:03:00]}  e5 {[%clk 0:02:59]} 2. Nf3 {[%clk 0:03:00]}  Nc6 {[%clk 0:02:59]} 3. Bb5 {[%clk 0:03:00]}  a6 {[%clk 0:02:59]} 4. Bxc6 {[%clk 0:03:01]}  dxc6 {[%clk 0:02:58]} 5. O-O {[%clk 0:03:02]}  f6 {[%clk 0:02:58]} 6. d4 {[%clk 0:03:01]}  exd4 {[%clk 0:02:59]} 7. e5 {[%clk 0:02:57]}  Bg4 {[%clk 0:02:46]} 8. Re1 {[%clk 0:02:56]}  Be7 {[%clk 0:02:46]} 9. h3 {[%clk 0:02:51]}  Bh5 {[%clk 0:02:42]} 10. g4 {[%clk 0:02:51]}  Bg6 {[%clk 0:02:39]} 11. Nh4 {[%clk 0:02:40]}  Qd5 {[%clk 0:02:22]} 12. Bf4 {[%clk 0:02:28]}  O-O-O {[%clk 0:02:14]} 13. Nf3 {[%clk 0:02:21]}  fxe5 {[%clk 0:02:04]} 14. Nxe5 {[%clk 0:02:13]}  Bf6 {[%clk 0:01:53]} 15. Nd2 {[%clk 0:02:12]}  Ne7 {[%clk 0:01:46]} 16. g5 {[%clk 0:02:09]}  Bxe5 {[%clk 0:01:44]} 17. Rxe5 {[%clk 0:02:10]}  Qd7 {[%clk 0:01:42]} 18. Nb3 {[%clk 0:01:53]}  Nd5 {[%clk 0:01:32]} 19. Qxd4 {[%clk 0:01:43]}  Qxh3 {[%clk 0:01:07]} 20. Bg3 {[%clk 0:01:31]}  Nb6 {[%clk 0:01:01]} 21. Qf4 {[%clk 0:01:27]}  Nd5 {[%clk 0:00:42]} 22. Rxd5 {[%clk 0:01:25]} 1-0


[Site "https://www.chess.com"]

[Event "Titled Tuesday Blitz May 23 Early 2023"]
[White "egorchess95"]
[Black "Pasti, Aron"]
[BlackFideId "785857"]
[WhiteElo "2560"]
[BlackElo "2173"]
[Result "1-0"]
[Round "07"]
[TimeControl "180+2"]
[Date "2023.05.23"]
[WhiteClock "0:00:59"]
[BlackClock "0:00:19"]

1. e4 {[%clk 0:03:00]}  e5 {[%clk 0:02:59]} 2. Nf3 {[%clk 0:03:01]}  Nc6 {[%clk 0:03:00]} 3. Bb5 {[%clk 0:03:01]}  a6 {[%clk 0:02:59]} 4. Ba4 {[%clk 0:03:02]}  Nf6 {[%clk 0:02:59]} 5. O-O {[%clk 0:03:02]}  Be7 {[%clk 0:03:00]} 6. Re1 {[%clk 0:03:02]}  b5 {[%clk 0:03:00]} 7. Bb3 {[%clk 0:03:02]}  d6 {[%clk 0:03:00]} 8. c3 {[%clk 0:03:02]}  Bg4 {[%clk 0:03:01]} 9. h3 {[%clk 0:02:53]}  Bh5 {[%clk 0:03:01]} 10. d4 {[%clk 0:02:44]}  exd4 {[%clk 0:03:00]} 11. cxd4 {[%clk 0:02:45]}  Bxf3 {[%clk 0:03:01]} 12. gxf3 {[%clk 0:02:45]}  Qd7 {[%clk 0:03:01]} 13. Kg2 {[%clk 0:02:44]}  O-O {[%clk 0:02:59]} 14. Nc3 {[%clk 0:02:43]}  Rfe8 {[%clk 0:02:56]} 15. f4 {[%clk 0:02:41]}  Bf8 {[%clk 0:02:55]} 16. e5 {[%clk 0:02:39]}  dxe5 {[%clk 0:02:34]} 17. dxe5 {[%clk 0:01:58]}  Qe7 {[%clk 0:02:18]} 18. Be3 {[%clk 0:01:57]}  Nd7 {[%clk 0:02:13]} 19. Nd5 {[%clk 0:01:55]}  Qd8 {[%clk 0:02:06]} 20. Rc1 {[%clk 0:01:56]}  Ndb8 {[%clk 0:01:54]} 21. Qg4 {[%clk 0:01:51]}  Kh8 {[%clk 0:01:39]} 22. Red1 {[%clk 0:01:50]}  Qc8 {[%clk 0:01:34]} 23. Qxc8 {[%clk 0:01:20]}  Rxc8 {[%clk 0:01:35]} 24. Bb6 {[%clk 0:01:19]}  Nd7 {[%clk 0:00:43]} 25. Bxc7 {[%clk 0:01:09]}  Na7 {[%clk 0:00:32]} 26. Nb6 {[%clk 0:01:01]}  Nxb6 {[%clk 0:00:31]} 27. Bxb6 {[%clk 0:01:01]}  Rxc1 {[%clk 0:00:31]} 28. Rxc1 {[%clk 0:01:02]}  Nc8 {[%clk 0:00:29]} 29. Bd5 {[%clk 0:00:58]}  Rb8 {[%clk 0:00:19]} 30. Bc7 {[%clk 0:00:59]} 1-0


[Site "https://www.chess.com"]

[Event "Titled Tuesday Blitz May 23 Early 2023"]
[White "Han, Yichen"]
[Black "Avazkhonov, Alikhon"]
[WhiteFideId "1054430"]
[BlackFideId "14208504"]
[WhiteElo "2342"]
[BlackElo "1739"]
[Result "1-0"]
[Round "07"]
[TimeControl "180+2"]
[Date "2023.05.23"]
[WhiteClock "0:00:44"]
[BlackClock "0:00:00"]

1. d4 {[%clk 0:03:00]}  Nf6 {[%clk 0:02:51]} 2. c4 {[%clk 0:03:00]}  e6 {[%clk 0:02:51]} 3. g3 {[%clk 0:03:00]}  Bb4+ {[%clk 0:02:52]} 4. Nd2 {[%clk 0:02:58]}  O-O {[%clk 0:02:49]} 5. Bg2 {[%clk 0:02:56]}  d5 {[%clk 0:02:49]} 6. Nf3 {[%clk 0:02:56]}  b6 {[%clk 0:02:46]} 7. O-O {[%clk 0:02:50]}  Bb7 {[%clk 0:02:46]} 8. a3 {[%clk 0:02:50]}  Be7 {[%clk 0:02:20]} 9. cxd5 {[%clk 0:02:40]}  exd5 {[%clk 0:02:19]} 10. b4 {[%clk 0:02:39]}  Nbd7 {[%clk 0:02:18]} 11. Bb2 {[%clk 0:02:35]}  c5 {[%clk 0:02:19]} 12. bxc5 {[%clk 0:02:28]}  bxc5 {[%clk 0:02:19]} 13. dxc5 {[%clk 0:02:27]}  Nxc5 {[%clk 0:02:20]} 14. Nd4 {[%clk 0:02:14]}  Nfe4 {[%clk 0:02:21]} 15. Nxe4 {[%clk 0:02:09]}  dxe4 {[%clk 0:02:20]} 16. Nf5 {[%clk 0:02:01]}  Bf6 {[%clk 0:02:18]} 17. Qxd8 {[%clk 0:02:00]}  Rfxd8 {[%clk 0:02:19]} 18. Bxf6 {[%clk 0:01:58]}  gxf6 {[%clk 0:02:20]} 19. Rac1 {[%clk 0:01:54]}  Nb3 {[%clk 0:02:13]} 20. Rb1 {[%clk 0:01:49]}  Bc8 {[%clk 0:01:09]} 21. Ne7+ {[%clk 0:01:42]}  Kf8 {[%clk 0:01:08]} 22. Nc6 {[%clk 0:01:30]}  Be6 {[%clk 0:00:36]} 23. Nxd8 {[%clk 0:01:28]}  Rxd8 {[%clk 0:00:37]} 24. Rfd1 {[%clk 0:01:24]}  Rxd1+ {[%clk 0:00:04]} 25. Rxd1 {[%clk 0:01:23]}  f5 {[%clk 0:00:05]} 26. f3 {[%clk 0:01:18]}  exf3 {[%clk 0:00:03]} 27. Bxf3 {[%clk 0:01:16]}  Nc5 {[%clk 0:00:02]} 28. Bd5 {[%clk 0:01:14]}  Ke7 {[%clk 0:00:02]} 29. Bxe6 {[%clk 0:01:13]}  fxe6 {[%clk 0:00:03]} 30. Rc1 {[%clk 0:01:12]}  Kd6 {[%clk 0:00:04]} 31. Rb1 {[%clk 0:01:13]}  a5 {[%clk 0:00:02]} 32. Rb5 {[%clk 0:01:10]}  a4 {[%clk 0:00:03]} 33. Rb8 {[%clk 0:01:09]}  Ne4 {[%clk 0:00:01]} 34. Rh8 {[%clk 0:01:03]}  Nc3 {[%clk 0:00:01]} 35. Rxh7 {[%clk 0:00:59]}  Nb1 {[%clk 0:00:01]} 36. Ra7 {[%clk 0:00:59]}  Nxa3 {[%clk 0:00:02]} 37. Rxa4 {[%clk 0:00:59]}  Nc2 {[%clk 0:00:03]} 38. Kf2 {[%clk 0:00:54]}  e5 {[%clk 0:00:03]} 39. e3 {[%clk 0:00:50]}  e4 {[%clk 0:00:00]} 40. h4 {[%clk 0:00:44]} 1-0


[Site "https://www.chess.com"]

[Event "Titled Tuesday Blitz May 23 Early 2023"]
[White "Mouhamad, Joachim"]
[Black "Bruedigam, Martin"]
[WhiteFideId "656410"]
[BlackFideId "24608033"]
[WhiteElo "2125"]
[BlackElo "2331"]
[Result "0-1"]
[Round "07"]
[TimeControl "180+2"]
[Date "2023.05.23"]
[WhiteClock "0:00:00"]
[BlackClock "0:00:19"]

1. e4 {[%clk 0:03:00]}  c6 {[%clk 0:02:59]} 2. d4 {[%clk 0:03:00]}  d5 {[%clk 0:03:00]} 3. Nc3 {[%clk 0:03:01]}  dxe4 {[%clk 0:03:00]} 4. Nxe4 {[%clk 0:03:02]}  Bf5 {[%clk 0:02:59]} 5. Ng3 {[%clk 0:03:02]}  Bg6 {[%clk 0:02:59]} 6. h4 {[%clk 0:03:03]}  h6 {[%clk 0:03:00]} 7. Nf3 {[%clk 0:03:02]}  Nd7 {[%clk 0:03:00]} 8. h5 {[%clk 0:03:02]}  Bh7 {[%clk 0:03:01]} 9. Bd3 {[%clk 0:03:02]}  Bxd3 {[%clk 0:03:01]} 10. Qxd3 {[%clk 0:03:03]}  e6 {[%clk 0:03:02]} 11. Bd2 {[%clk 0:03:03]}  Ngf6 {[%clk 0:03:02]} 12. O-O-O {[%clk 0:02:56]}  Be7 {[%clk 0:03:02]} 13. Kb1 {[%clk 0:02:55]}  O-O {[%clk 0:03:02]} 14. Ne4 {[%clk 0:02:56]}  Nxe4 {[%clk 0:03:01]} 15. Qxe4 {[%clk 0:02:57]}  Nf6 {[%clk 0:03:01]} 16. Qe2 {[%clk 0:02:57]}  Qd5 {[%clk 0:03:00]} 17. Be3 {[%clk 0:02:58]}  Qb5 {[%clk 0:03:00]} 18. c4 {[%clk 0:02:40]}  Qf5+ {[%clk 0:02:59]} 19. Ka1 {[%clk 0:02:40]}  a5 {[%clk 0:02:58]} 20. Ne5 {[%clk 0:02:41]}  c5 {[%clk 0:02:28]} 21. g4 {[%clk 0:02:38]}  Qh7 {[%clk 0:02:28]} 22. f3 {[%clk 0:02:35]}  cxd4 {[%clk 0:02:27]} 23. Bxd4 {[%clk 0:02:34]}  a4 {[%clk 0:02:23]} 24. a3 {[%clk 0:02:33]}  Rfc8 {[%clk 0:02:18]} 25. Bc3 {[%clk 0:02:28]}  Rc7 {[%clk 0:02:03]} 26. Rhe1 {[%clk 0:02:17]}  Ra6 {[%clk 0:02:02]} 27. f4 {[%clk 0:02:02]}  Rd6 {[%clk 0:01:46]} 28. Ng6 {[%clk 0:00:58]}  Rxd1+ {[%clk 0:01:23]} 29. Rxd1 {[%clk 0:00:57]}  fxg6 {[%clk 0:00:48]} 30. Qxe6+ {[%clk 0:00:57]}  Kf8 {[%clk 0:00:49]} 31. Bb4 {[%clk 0:00:53]}  gxh5 {[%clk 0:00:25]} 32. f5 {[%clk 0:00:33]}  hxg4 {[%clk 0:00:19]} 33. Bd6 {[%clk 0:00:02]}  Rd7 {[%clk 0:00:19]} 34. Bxe7+ {[%clk 0:00:02]}  Rxe7 {[%clk 0:00:20]} 35. Rd8+ {[%clk 0:00:03]}  Ne8 {[%clk 0:00:20]} 36. Qd5 {[%clk 0:00:00]}  Qg8 {[%clk 0:00:19]} 0-1


[Site "https://www.chess.com"]

[Event "Titled Tuesday Blitz May 23 Early 2023"]
[White "surrenderPLS"]
[Black "Srdanovic, Jovana"]
[BlackFideId "954810"]
[WhiteElo "2549"]
[BlackElo "2169"]
[Result "0-1"]
[Round "07"]
[TimeControl "180+2"]
[Date "2023.05.23"]
[WhiteClock "0:01:55"]
[BlackClock "0:02:22"]

1. e4 {[%clk 0:03:00]}  c5 {[%clk 0:02:59]} 2. Nf3 {[%clk 0:03:00]}  e6 {[%clk 0:02:59]} 3. d4 {[%clk 0:03:00]}  cxd4 {[%clk 0:03:00]} 4. Nxd4 {[%clk 0:03:01]}  a6 {[%clk 0:03:01]} 5. Bd3 {[%clk 0:03:01]}  Bc5 {[%clk 0:03:00]} 6. Nb3 {[%clk 0:03:01]}  Be7 {[%clk 0:03:00]} 7. O-O {[%clk 0:02:51]}  d6 {[%clk 0:02:59]} 8. c4 {[%clk 0:02:51]}  Nf6 {[%clk 0:02:59]} 9. Nc3 {[%clk 0:02:52]}  O-O {[%clk 0:02:59]} 10. Qe2 {[%clk 0:02:52]}  Qc7 {[%clk 0:02:59]} 11. f4 {[%clk 0:02:52]}  Nbd7 {[%clk 0:02:58]} 12. g4 {[%clk 0:02:51]}  Nc5 {[%clk 0:02:57]} 13. Nxc5 {[%clk 0:02:51]}  dxc5 {[%clk 0:02:57]} 14. e5 {[%clk 0:02:46]}  Ne8 {[%clk 0:02:52]} 15. g5 {[%clk 0:02:42]}  g6 {[%clk 0:02:51]} 16. h4 {[%clk 0:02:42]}  Ng7 {[%clk 0:02:51]} 17. Ne4 {[%clk 0:02:41]}  Bd7 {[%clk 0:02:51]} 18. Ng3 {[%clk 0:02:36]}  Bc6 {[%clk 0:02:48]} 19. h5 {[%clk 0:02:32]}  Rad8 {[%clk 0:02:48]} 20. Be3 {[%clk 0:02:32]}  Rd7 {[%clk 0:02:48]} 21. Rad1 {[%clk 0:02:32]}  Rfd8 {[%clk 0:02:47]} 22. b3 {[%clk 0:02:32]}  b5 {[%clk 0:02:44]} 23. Kf2 {[%clk 0:02:31]}  Qb7 {[%clk 0:02:37]} 24. hxg6 {[%clk 0:02:10]}  hxg6 {[%clk 0:02:24]} 25. Be4 {[%clk 0:02:02]}  Bxe4 {[%clk 0:02:20]} 26. Rxd7 {[%clk 0:02:00]}  Rxd7 {[%clk 0:02:21]} 27. Nxe4 {[%clk 0:01:55]}  Qxe4 {[%clk 0:02:22]} 0-1


[Site "https://www.chess.com"]

[Event "Titled Tuesday Blitz May 23 Early 2023"]
[White "Tologon tegin, Semetei"]
[Black "Bilan, Danila"]
[WhiteFideId "13800574"]
[BlackFideId "24161918"]
[WhiteElo "2247"]
[BlackElo "2182"]
[Result "1/2-1/2"]
[Round "07"]
[TimeControl "180+2"]
[Date "2023.05.23"]
[WhiteClock "0:00:09"]
[BlackClock "0:00:04"]

1. Nf3 {[%clk 0:02:57]}  d5 {[%clk 0:03:00]} 2. e3 {[%clk 0:02:58]}  Nf6 {[%clk 0:03:00]} 3. d4 {[%clk 0:02:59]}  c5 {[%clk 0:03:00]} 4. Bd3 {[%clk 0:02:59]}  Nc6 {[%clk 0:03:00]} 5. O-O {[%clk 0:02:59]}  Bg4 {[%clk 0:03:00]} 6. c3 {[%clk 0:02:55]}  e6 {[%clk 0:02:59]} 7. Nbd2 {[%clk 0:02:54]}  Bd6 {[%clk 0:02:59]} 8. dxc5 {[%clk 0:02:51]}  Bxc5 {[%clk 0:02:58]} 9. e4 {[%clk 0:02:51]}  dxe4 {[%clk 0:02:49]} 10. Nxe4 {[%clk 0:02:51]}  Nxe4 {[%clk 0:02:41]} 11. Bxe4 {[%clk 0:02:52]}  Qxd1 {[%clk 0:02:38]} 12. Rxd1 {[%clk 0:02:45]}  f5 {[%clk 0:02:29]} 13. Bxc6+ {[%clk 0:02:37]}  bxc6 {[%clk 0:02:30]} 14. Bf4 {[%clk 0:02:35]}  Bxf3 {[%clk 0:02:07]} 15. gxf3 {[%clk 0:02:33]}  Rd8 {[%clk 0:01:54]} 16. Be5 {[%clk 0:02:21]}  Kf7 {[%clk 0:01:49]} 17. b4 {[%clk 0:02:09]}  Be7 {[%clk 0:01:41]} 18. Kf1 {[%clk 0:02:07]}  Rd5 {[%clk 0:01:32]} 19. f4 {[%clk 0:02:05]}  Rhd8 {[%clk 0:01:30]} 20. Ke2 {[%clk 0:02:03]}  g5 {[%clk 0:01:20]} 21. Rxd5 {[%clk 0:01:46]}  cxd5 {[%clk 0:01:07]} 22. fxg5 {[%clk 0:01:36]}  Bxg5 {[%clk 0:01:06]} 23. a4 {[%clk 0:01:28]}  Rc8 {[%clk 0:00:58]} 24. Kd3 {[%clk 0:01:26]}  Bf6 {[%clk 0:00:50]} 25. Bxf6 {[%clk 0:01:23]}  Kxf6 {[%clk 0:00:50]} 26. b5 {[%clk 0:01:18]}  Ke5 {[%clk 0:00:36]} 27. a5 {[%clk 0:00:37]}  Kd6 {[%clk 0:00:29]} 28. Ra4 {[%clk 0:00:38]}  Rb8 {[%clk 0:00:18]} 29. c4 {[%clk 0:00:35]}  Kc5 {[%clk 0:00:18]} 30. cxd5 {[%clk 0:00:22]}  Kxd5 {[%clk 0:00:12]} 31. Rb4 {[%clk 0:00:20]}  Kc5 {[%clk 0:00:12]} 32. Rc4+ {[%clk 0:00:20]}  Kd5 {[%clk 0:00:12]} 33. Rc7 {[%clk 0:00:18]}  Rxb5 {[%clk 0:00:12]} 34. Rxa7 {[%clk 0:00:19]}  Rb3+ {[%clk 0:00:12]} 35. Ke2 {[%clk 0:00:19]}  Ra3 {[%clk 0:00:12]} 36. a6 {[%clk 0:00:19]}  Ke4 {[%clk 0:00:10]} 37. Rxh7 {[%clk 0:00:18]}  Rxa6 {[%clk 0:00:10]} 38. Kf1 {[%clk 0:00:18]}  Kf3 {[%clk 0:00:09]} 39. Rh3+ {[%clk 0:00:18]}  Kf4 {[%clk 0:00:09]} 40. Kg2 {[%clk 0:00:18]}  e5 {[%clk 0:00:09]} 41. Rf3+ {[%clk 0:00:18]}  Ke4 {[%clk 0:00:09]} 42. h4 {[%clk 0:00:17]}  Rg6+ {[%clk 0:00:08]} 43. Rg3 {[%clk 0:00:17]}  Rh6 {[%clk 0:00:09]} 44. Rh3 {[%clk 0:00:17]}  Kf4 {[%clk 0:00:09]} 45. f3 {[%clk 0:00:11]}  Rh5 {[%clk 0:00:05]} 46. Kf2 {[%clk 0:00:10]}  Rh7 {[%clk 0:00:04]} 47. Ke2 {[%clk 0:00:10]}  Rh6 {[%clk 0:00:04]} 48. Kf2 {[%clk 0:00:10]}  Rh5 {[%clk 0:00:05]} 49. Ke2 {[%clk 0:00:10]}  Rh7 {[%clk 0:00:04]} 50. Kf2 {[%clk 0:00:10]}  Rh8 {[%clk 0:00:04]} 51. Ke2 {[%clk 0:00:10]}  Rh6 {[%clk 0:00:02]} 52. Kf2 {[%clk 0:00:10]}  Rh5 {[%clk 0:00:03]} 53. Ke2 {[%clk 0:00:10]}  e4 {[%clk 0:00:03]} 54. fxe4 {[%clk 0:00:10]}  fxe4 {[%clk 0:00:04]} 55. Rh1 {[%clk 0:00:09]}  Kg4 {[%clk 0:00:03]} 56. Ke3 {[%clk 0:00:09]}  Rxh4 {[%clk 0:00:03]} 57. Rxh4+ {[%clk 0:00:09]}  Kxh4 {[%clk 0:00:04]} 58. Kxe4 {[%clk 0:00:09]} 1/2-1/2


[Site "https://www.chess.com"]

[Event "Titled Tuesday Blitz May 23 Early 2023"]
[White "Wadsworth, Matthew J"]
[Black "Gurevich, Dmitry"]
[WhiteFideId "415804"]
[BlackFideId "2000407"]
[WhiteElo "2347"]
[BlackElo "2506"]
[Result "1-0"]
[Round "07"]
[TimeControl "180+2"]
[Date "2023.05.23"]
[WhiteClock "0:00:02"]
[BlackClock "0:00:00"]

1. Nf3 {[%clk 0:03:00]}  Nf6 {[%clk 0:02:59]} 2. g3 {[%clk 0:03:00]}  g6 {[%clk 0:02:57]} 3. Bg2 {[%clk 0:03:00]}  Bg7 {[%clk 0:02:57]} 4. O-O {[%clk 0:03:01]}  O-O {[%clk 0:02:57]} 5. c4 {[%clk 0:03:01]}  c5 {[%clk 0:02:57]} 6. d4 {[%clk 0:02:57]}  d6 {[%clk 0:02:55]} 7. Nc3 {[%clk 0:02:52]}  Nc6 {[%clk 0:02:54]} 8. dxc5 {[%clk 0:02:53]}  dxc5 {[%clk 0:02:54]} 9. Be3 {[%clk 0:02:53]}  Qa5 {[%clk 0:02:50]} 10. Qb3 {[%clk 0:02:51]}  Ng4 {[%clk 0:02:40]} 11. Bd2 {[%clk 0:02:45]}  Qb4 {[%clk 0:02:29]} 12. Qxb4 {[%clk 0:02:40]}  cxb4 {[%clk 0:02:28]} 13. Na4 {[%clk 0:02:40]}  Rd8 {[%clk 0:02:14]} 14. Rad1 {[%clk 0:02:32]}  Bd7 {[%clk 0:02:10]} 15. b3 {[%clk 0:02:27]}  b6 {[%clk 0:02:06]} 16. h3 {[%clk 0:02:12]}  Nge5 {[%clk 0:02:05]} 17. Nxe5 {[%clk 0:02:09]}  Bxe5 {[%clk 0:02:04]} 18. Bxb4 {[%clk 0:01:52]}  Be8 {[%clk 0:01:40]} 19. Ba3 {[%clk 0:01:25]}  Rab8 {[%clk 0:01:17]} 20. e3 {[%clk 0:01:09]}  a6 {[%clk 0:01:15]} 21. Nb2 {[%clk 0:01:06]}  b5 {[%clk 0:01:12]} 22. cxb5 {[%clk 0:00:56]}  axb5 {[%clk 0:01:10]} 23. Nd3 {[%clk 0:00:56]}  Bc3 {[%clk 0:01:01]} 24. Bxc6 {[%clk 0:00:30]}  Bxc6 {[%clk 0:01:00]} 25. Bxe7 {[%clk 0:00:30]}  Rd7 {[%clk 0:00:51]} 26. Nb4 {[%clk 0:00:29]}  Rxd1 {[%clk 0:00:30]} 27. Rxd1 {[%clk 0:00:26]}  Bf3 {[%clk 0:00:27]} 28. Rc1 {[%clk 0:00:16]}  Bb2 {[%clk 0:00:16]} 29. Rc2 {[%clk 0:00:13]}  Ba1 {[%clk 0:00:09]} 30. Nc6 {[%clk 0:00:07]}  Re8 {[%clk 0:00:07]} 31. Bc5 {[%clk 0:00:05]}  f5 {[%clk 0:00:06]} 32. Bd4 {[%clk 0:00:05]}  Be4 {[%clk 0:00:04]} 33. Rc1 {[%clk 0:00:04]}  Bxd4 {[%clk 0:00:04]} 34. Nxd4 {[%clk 0:00:04]}  Ra8 {[%clk 0:00:00]} 35. Nxb5 {[%clk 0:00:02]} 1-0


[Site "https://www.chess.com"]